bitfinex-derivatives/quotes_ETHF0:USTF0_20240905
["timestamp","ask_amount","ask_price","bid_price","bid_amount"]
[1725535311709,3.2078,2391.4,2391.2,0.79932]
[1725535311710,3.62599,2391.4,2391.2,0.79932]
[1725535312014,0.4182,2391.3,2391.2,0.79932]
[1725535312214,3.98229,2391.4,2391.2,0.79932]
[1725535313408,0.3563,2391.4,2391.3,0.4182]
[1725535314316,0.3563,2391.4,2391.2,0.79931]
[1725535316216,0.77448,2391.4,2391.2,0.79931]
[1725535317309,0.77448,2391.4,2391.3,0.4182]
[1725535317310,0.3563,2391.4,2391.3,0.4182]
[1725535318115,0.77449,2391.4,2391.2,0.79931]
[1725535320409,0.3563,2391.4,2391.3,0.4182]
[1725535322017,0.77448,2391.4,2391.3,0.4182]
[1725535322214,0.77448,2391.4,2391.2,0.7993]
[1725535322411,0.3563,2391.4,2391.2,0.7993]
[1725535322716,0.7745,2391.4,2391.2,0.7993]
[1725535323719,0.7745,2391.4,2391.3,0.4182]
[1725535324610,0.7745,2391.4,2391.2,0.7993]
[1725535328918,0.3563,2391.4,2391.3,0.4182]
[1725535329226,0.00627891,2391.7,2391.6,0.41815]
[1725535329426,0.41801,2392.4,2391.7,1.04531]
[1725535329612,0.41801,2392.4,2392.0,1.21]
[1725535329925,3.5788,2392.5,2392.3,0.41801]
[1725535330229,3.2078,2392.5,2392.4,1.21]
[1725535330417,3.2078,2392.5,2392.4,1.62801]
[1725535332018,3.2078,2392.5,2392.3,0.80221]
[1725535332720,3.2078,2392.5,2392.4,7.48801]
[1725535332915,0.00627891,2392.7,2392.5,0.41798]
[1725535333122,0.00627891,2392.7,2392.4,3.30799]
[1725535333617,0.00627891,2392.7,2392.5,0.41799]
[1725535335723,0.00627891,2392.7,2392.5,0.79239]
[1725535336119,0.42423891,2392.7,2392.5,0.3744]
[1725535337830,0.00627891,2392.7,2392.5,0.79239]
[1725535338227,0.00627891,2392.7,2392.3,0.7581]
[1725535338432,0.00627891,2392.7,2392.5,0.41798]
[1725535338433,0.42423891,2392.7,2392.5,0.41798]
[1725535338630,0.00627891,2392.7,2392.3,0.3842]
[1725535338836,0.41801,2392.4,2392.3,0.3842]
[1725535340327,0.3773,2392.5,2392.4,0.41801]
[1725535340631,0.3701,2392.6,2392.4,0.41801]
[1725535340831,0.78808,2392.6,2392.4,0.79841]
[1725535341038,0.78808,2392.6,2392.4,0.3804]
[1725535341228,0.78808,2392.6,2392.4,0.7984]
[1725535342437,0.3701,2392.6,2392.5,0.41799]
[1725535342626,0.3701,2392.6,2392.4,0.79839]
[1725535342825,0.78808,2392.6,2392.4,0.79839]
[1725535346038,0.41799,2392.5,2392.3,0.80221]
[1725535347637,0.41799,2392.5,2392.4,0.41801]
[1725535348131,0.42424891,2392.7,2392.5,0.41799]
[1725535348336,0.41798,2392.6,2392.4,0.418]
[1725535348527,0.00627891,2392.7,2392.3,0.3842]
[1725535348729,0.00627891,2392.7,2392.4,2.89]
[1725535348936,0.42422891,2392.7,2392.5,0.41798]
[1725535349128,0.42422891,2392.7,2392.5,0.79038]
[1725535349532,0.41797,2392.6,2392.5,0.3724]
[1725535350234,0.418,2392.5,2392.3,0.80221]
[1725535350939,0.367,2392.4,2392.3,0.80221]
[1725535351528,0.78501,2392.4,2392.3,0.3842]
[1725535351731,0.41802,2392.3,2392.2,0.00627891]
[1725535351935,8.53309,2392.3,2392.2,0.00627891]
[1725535352334,14.53309,2392.3,2392.2,0.00627891]
[1725535352744,4.59802,2392.3,2392.2,0.00627891]
[1725535353638,4.18,2392.3,2392.2,0.00627891]
[1725535353838,1.17932,2392.4,2392.2,0.00627891]
[1725535354043,0.41798,2392.6,2392.3,0.41801]
[1725535354240,2.34947891,2392.7,2392.4,0.3755]
[1725535354541,0.41798,2392.6,2392.4,0.3755]
[1725535354843,2.76743891,2392.7,2392.4,0.79351]
[1725535355032,1.97317891,2392.7,2392.5,0.41799]
[1725535355238,1.97317891,2392.7,2392.5,0.80019]
[1725535355745,2.39112891,2392.7,2392.5,0.80019]
[1725535356043,2.39112891,2392.7,2392.5,0.3822]
[1725535356941,0.41798,2392.6,2392.4,0.3755]
[1725535357138,0.41798,2392.6,2392.4,0.7479]
[1725535357442,1.97317891,2392.7,2392.5,0.41799]
[1725535357633,2.39113891,2392.7,2392.5,0.41799]
[1725535357833,1.97317891,2392.7,2392.5,0.41799]
[1725535359341,0.36217891,2392.7,2392.5,0.41799]
[1725535359841,0.78012891,2392.7,2392.5,0.41799]
[1725535360037,0.78012891,2392.7,2392.4,1.16589]
[1725535360336,0.41797,2392.6,2392.4,0.3724]
[1725535361027,0.41797,2392.6,2392.4,0.7904]
[1725535362040,0.78014891,2392.7,2392.4,0.7904]
[1725535362938,0.41797,2392.6,2392.4,0.7904]
[1725535363940,0.41797,2392.6,2392.5,0.41799]
[1725535364142,0.41797,2392.6,2392.4,0.7904]
[1725535365438,0.41797,2392.6,2392.5,0.41799]
[1725535365833,0.41797,2392.6,2392.4,0.3724]
[1725535366239,0.41797,2392.6,2392.5,0.41799]
[1725535367246,0.78013891,2392.7,2392.4,3.2624]
[1725535367442,0.78013891,2392.7,2392.5,0.41798]
[1725535368148,0.41797,2392.6,2392.5,0.41798]
[1725535369343,0.36217891,2392.7,2392.6,0.41797]
[1725535370743,0.78012891,2392.7,2392.6,0.41797]
[1725535371446,0.36217891,2392.7,2392.6,0.41797]
[1725535372450,0.00627891,2392.7,2392.6,0.41797]
[1725535374046,1.611,2393.2,2392.6,10.1792]
[1725535374353,0.41788,2393.2,2393.0,0.41789]
[1725535374647,0.7719,2393.4,2393.1,0.41788]
[1725535374648,0.41786,2393.3,2393.1,0.41788]
[1725535375239,1.19601891,2393.4,2393.0,0.3702]
[1725535375448,1.19601891,2393.4,2393.2,0.41786]
[1725535376339,0.41785,2393.3,2393.1,0.78757]
[1725535376537,0.41787,2393.2,2392.9,0.41791]
[1725535376737,0.41789,2393.1,2392.9,0.41791]
[1725535376943,0.3924,2393.0,2392.9,0.41791]
[1725535378548,0.3924,2393.0,2392.8,6.4675]
[1725535378845,0.3924,2393.0,2392.6,2.89]
[1725535378846,0.41793,2392.9,2392.6,2.89]
[1725535379153,0.78183,2392.9,2392.7,0.41795]
[1725535379846,0.3639,2392.9,2392.6,2.89]
[1725535380052,0.78183,2392.9,2392.7,0.41795]
[1725535380441,0.81031,2393.0,2392.8,0.41794]
[1725535380856,0.3924,2393.0,2392.9,1.19472]
[1725535381046,0.8103,2393.0,2392.8,2.89]
[1725535381248,0.8103,2393.0,2392.8,3.30793]
[1725535381550,0.41792,2392.9,2392.8,2.89]
[1725535383060,0.3924,2393.0,2392.6,3.69906]
[1725535383061,0.41794,2392.8,2392.6,3.69906]
[1725535383456,0.77735,2392.7,2392.6,3.2811]
[1725535383756,0.77735,2392.7,2392.3,0.41802]
[1725535383757,0.41799,2392.5,2392.3,0.41802]
[1725535383955,0.41799,2392.5,2392.4,0.41801]
[1725535384264,0.41799,2392.5,2392.3,0.41801]
[1725535384949,0.7774,2392.6,2392.2,3.69870891]
[1725535385176,0.418,2392.5,2392.3,0.41802]
[1725535385351,0.418,2392.5,2392.4,0.41801]
[1725535385957,0.418,2392.5,2392.3,0.41801]
[1725535386163,0.418,2392.5,2392.4,0.41801]
[1725535387866,0.418,2392.5,2392.3,0.41801]
[1725535388767,0.41799,2392.5,2392.3,0.41801]
[1725535389176,0.41801,2392.4,2392.2,3.69870891]
[1725535389361,0.7774,2392.6,2392.2,0.39067891]
[1725535389362,0.41802,2392.3,2392.2,0.39067891]
[1725535389563,0.79232,2392.3,2392.2,0.00627891]
[1725535391275,0.79232,2392.3,2392.2,0.42431891]
[1725535391865,0.3743,2392.3,2392.2,0.42431891]
[1725535392070,0.7774,2392.6,2392.2,0.42431891]
[1725535392266,0.41801,2392.4,2392.3,0.3873]
[1725535392765,1.82235,2392.6,2392.3,0.3873]
[1725535392766,0.7774,2392.6,2392.3,0.3873]
[1725535392968,0.3909,2392.6,2392.5,0.41799]
[1725535393667,0.3909,2392.6,2392.5,0.80309]
[1725535394371,0.78327,2392.7,2392.5,0.80308]
[1725535394563,0.41797,2392.6,2392.5,0.80308]
[1725535394967,0.78326,2392.7,2392.6,0.41797]
[1725535395376,0.41792,2392.9,2392.5,0.3851]
[1725535395576,0.41792,2392.9,2392.7,0.41795]
[1725535396076,0.41792,2392.9,2392.8,0.41794]
[1725535396471,0.41792,2392.9,2392.7,0.41794]
[1725535399787,0.41789,2393.1,2392.9,0.41792]
[1725535400677,1.115,2393.2,2392.9,0.41791]
[1725535400678,0.41791,2393.0,2392.9,0.41791]
[1725535400878,0.41791,2393.0,2392.8,1.18082]
[1725535401075,0.41791,2393.0,2392.9,0.41792]
[1725535401281,0.41789,2393.1,2392.9,0.81132]
[1725535402086,0.4179,2393.0,2392.9,0.81132]
[1725535402288,0.4179,2393.1,2392.9,0.81132]
[1725535402473,0.4179,2393.1,2392.9,0.3934]
[1725535402879,0.4179,2393.1,2392.9,0.8113]
[1725535403477,0.4179,2393.0,2392.9,0.8113]
[1725535403684,1.04477,2393.0,2392.7,0.41794]
[1725535403977,0.41792,2392.9,2392.8,0.41794]
[1725535404683,0.41792,2392.9,2392.5,1.087]
[1725535405278,0.41792,2392.9,2392.6,2.89]
[1725535405489,0.41792,2392.9,2392.8,0.41794]
[1725535407290,0.41794,2392.8,2392.7,0.41794]
[1725535407490,0.41793,2392.9,2392.7,0.41794]
[1725535407990,0.41793,2392.9,2392.8,0.41794]
[1725535408197,0.41793,2392.9,2392.7,0.41794]
[1725535409590,0.41794,2392.8,2392.7,0.41794]
[1725535409883,0.39,2393.0,2392.8,0.41794]
[1725535409884,0.41793,2392.9,2392.8,0.41794]
[1725535412689,0.7446,2393.2,2392.9,0.41791]
[1725535412884,0.4179,2393.1,2392.9,0.41791]
[1725535413298,0.7446,2393.2,2393.1,0.41788]
[1725535413482,3.58807891,2393.4,2393.2,0.41787]
[1725535413483,0.41786,2393.3,2393.2,0.41787]
[1725535413885,3.97927891,2393.4,2393.2,0.41787]
[1725535414386,0.41785,2393.3,2393.2,0.41787]
[1725535415997,0.41787,2393.2,2393.0,0.41789]
[1725535416496,5.02387891,2393.4,2393.0,0.41789]
[1725535416791,0.4179,2393.0,2392.9,1.51091]
[1725535417180,4.25253,2393.1,2392.7,0.41795]
[1725535417384,0.41794,2392.8,2392.6,0.3811]
[1725535418294,0.41792,2392.9,2392.8,0.41794]
[1725535419204,0.4179,2393.0,2392.9,0.41792]
[1725535419390,0.41794,2392.8,2392.7,3.2078]
[1725535419594,1.04478,2393.0,2392.6,0.79906]
[1725535419891,0.41795,2392.8,2392.6,0.79906]
[1725535420192,0.41795,2392.7,2392.6,0.3811]
[1725535421296,0.41794,2392.8,2392.6,0.3811]
[1725535421692,0.42420891,2392.9,2392.7,0.41795]
[1725535423591,0.42420891,2392.9,2392.8,0.41794]
[1725535423792,0.41795,2392.8,2392.6,3.68906]
[1725535424004,0.41795,2392.8,2392.7,0.41795]
[1725535424797,0.42420891,2392.9,2392.7,0.41795]
[1725535426302,1.04453,2393.6,2393.2,0.41786]
[1725535426501,0.41784,2393.4,2393.3,0.3743]
[1725535426795,0.41784,2393.4,2393.3,1.1298]
[1725535431407,0.41784,2393.4,2393.3,0.7567]
[1725535431592,1.04454,2393.5,2393.1,0.41787]
[1725535431792,0.41788,2393.1,2393.0,0.3828]
[1725535434100,0.41788,2393.1,2393.0,0.8007]
[1725535434304,0.41786,2393.3,2393.1,0.41787]
[1725535434508,0.41784,2393.4,2393.0,0.3828]
[1725535434696,0.41784,2393.4,2393.2,0.41785]
[1725535435004,0.41784,2393.4,2393.3,0.3922]
[1725535435302,0.41784,2393.4,2393.3,0.7509]
[1725535436793,0.41783,2393.4,2393.3,0.7509]
[1725535438103,0.41783,2393.4,2393.3,1.16875]
[1725535438306,0.41783,2393.4,2393.3,0.7509]
[1725535439191,0.41783,2393.4,2393.3,1.16875]
[1725535439608,1.79030594,2393.6,2393.3,1.16875]
[1725535440999,0.41783,2393.4,2393.3,0.7509]
[1725535442001,0.41783,2393.4,2393.3,1.16875]
[1725535442402,0.41783,2393.4,2393.3,0.7509]
[1725535442701,0.41783,2393.4,2393.3,0.3922]
[1725535443304,0.41783,2393.4,2393.2,0.41786]
[1725535443305,0.41786,2393.3,2393.2,0.41787]
[1725535443612,1.79030594,2393.6,2393.1,0.41787]
[1725535443613,0.41787,2393.2,2393.1,0.41787]
[1725535443805,0.41786,2393.3,2393.1,0.41787]
[1725535444105,0.41787,2393.2,2393.1,0.41787]
[1725535445502,0.41786,2393.3,2393.1,0.41787]
[1725535445697,1.04456,2393.5,2393.2,0.41787]
[1725535445895,0.41785,2393.3,2393.2,0.41787]
[1725535446808,0.41784,2393.4,2393.2,0.77397]
[1725535447006,0.41785,2393.3,2393.2,0.3561]
[1725535447511,0.80638594,2393.6,2393.2,0.3561]
[1725535447708,0.42198594,2393.6,2393.4,0.41783]
[1725535447906,0.42198594,2393.6,2393.5,0.7592]
[1725535448110,0.42198594,2393.6,2393.5,1.17701]
[1725535448507,0.42198594,2393.6,2393.5,0.7592]
[1725535448709,0.42198594,2393.6,2393.5,1.17701]
[1725535448901,0.377,2394.0,2393.5,1.17701]
[1725535448902,3.2078,2394.2,2393.8,0.41775]
[1725535449211,0.41774,2394.0,2393.9,0.3765]
[1725535451717,1.04428,2394.1,2393.7,0.00626566]
[1725535451923,0.41776,2393.8,2393.7,0.00626566]
[1725535452308,0.79675,2393.9,2393.7,0.42404566]
[1725535452619,0.79675,2393.9,2393.7,0.00626566]
[1725535452813,0.41776,2393.8,2393.7,0.42404566]
[1725535453117,0.41776,2393.8,2393.7,0.00626566]
[1725535453118,1.46217,2393.8,2393.7,0.00626566]
[1725535453320,5.63977,2393.8,2393.7,0.00626566]
[1725535453616,8.52977,2393.8,2393.7,0.00626566]
[1725535456821,8.68675121,2393.8,2393.7,0.00626566]
[1725535457021,5.79675121,2393.8,2393.7,0.00626566]
[1725535458019,5.63977,2393.8,2393.7,0.00626566]
[1725535458432,1.46217,2393.8,2393.7,0.00626566]
[1725535458737,5.63977,2393.8,2393.7,0.00626566]
[1725535460934,12.68418,2393.8,2393.7,0.00626566]
[1725535461632,15.57418,2393.8,2393.7,0.00626566]
[1725535466836,9.57418,2393.8,2393.7,0.00626566]
[1725535467142,9.57418,2393.8,2392.8,0.41793]
[1725535467143,0.4179,2393.1,2392.8,0.41793]
[1725535467340,0.4179,2393.1,2392.9,1.1206]
[1725535467939,0.4179,2393.0,2392.9,1.1206]
[1725535468138,0.4179,2393.0,2392.9,0.3581]
[1725535468343,3.94092151,2393.2,2392.8,0.00626566]
[1725535468344,0.41792,2392.9,2392.8,0.00626566]
[1725535469130,0.41792,2392.9,2392.8,0.39566566]
[1725535469841,0.41792,2392.9,2392.8,1.14426566]
[1725535472733,5.64192,2392.9,2392.8,0.00626566]
[1725535473039,4.59712,2392.9,2392.8,0.00626566]
[1725535473346,0.41792,2392.9,2392.8,0.00626566]
[1725535475349,5.80094274,2392.9,2392.8,0.00626566]
[1725535475647,1.62174274,2392.9,2392.8,0.00626566]
[1725535475943,5.80094274,2392.9,2392.8,0.00626566]
[1725535476142,1.62174274,2392.9,2392.8,0.00626566]
[1725535477645,5.80094274,2392.9,2392.8,0.00626566]
[1725535477841,1.62174274,2392.9,2392.8,0.00626566]
[1725535478440,5.80094274,2392.9,2392.8,0.00626566]
[1725535478843,1.62174274,2392.9,2392.8,0.00626566]
[1725535479547,5.80094274,2392.9,2392.8,0.00626566]
[1725535479844,1.62174274,2392.9,2392.8,0.00626566]
[1725535484046,0.41792,2392.9,2392.8,0.00626566]
[1725535486243,1.46272,2392.9,2392.8,0.00626566]
[1725535489052,5.64192,2392.9,2392.8,0.00626566]
[1725535489746,5.64192,2392.9,2392.5,1.1496]
[1725535489747,1.46291,2392.6,2392.5,0.39]
[1725535489949,1.46303,2392.4,2392.3,0.7741]
[1725535490951,0.41801,2392.4,2392.3,0.7741]
[1725535494457,1.46315,2392.2,2392.1,0.00626566]
[1725535494651,3.30804,2392.2,2392.1,0.00626566]
[1725535496859,8.53315,2392.2,2392.1,0.00626566]
[1725535498861,4.35315,2392.2,2392.1,0.00626566]
[1725535499757,3.30804,2392.2,2392.1,0.00626566]
[1725535499958,3.62581,2392.4,2392.1,0.00626566]
[1725535499959,3.2078,2392.4,2392.1,0.00626566]
[1725535500158,5.2285,2392.6,2392.1,0.39386566]
[1725535500458,5.2285,2392.6,2392.2,0.3794]
[1725535500658,0.41801,2392.4,2392.2,0.3794]
[1725535501362,0.418,2392.5,2392.2,0.3794]
[1725535501566,4.27037014,2392.6,2392.2,0.79743]
[1725535501863,0.41799,2392.5,2392.2,0.79743]
[1725535502164,3.30799,2392.5,2392.2,0.3794]
[1725535502949,0.41802,2392.4,2392.2,0.3794]
[1725535503155,0.41801,2392.4,2392.2,0.3794]
[1725535504265,3.308,2392.5,2392.2,0.3794]
[1725535504560,0.41801,2392.4,2392.2,0.3794]
[1725535505657,0.41802,2392.3,2392.2,0.3794]
[1725535507863,0.41802,2392.4,2392.2,0.3794]
[1725535508365,2.89,2392.5,2392.2,0.3794]
[1725535508563,6.51576,2392.7,2392.2,0.3794]
[1725535508755,3.30796,2392.7,2392.2,3.5872]
[1725535508962,3.30796,2392.7,2392.3,0.41801]
[1725535509179,4.111,2392.8,2392.2,3.5872]
[1725535509466,4.111,2392.8,2392.5,6.0978]
[1725535509666,4.111,2392.8,2392.7,0.41795]
[1725535510070,0.41795,2392.7,2392.6,1.1197]
[1725535510659,4.111,2392.8,2392.6,1.1197]
[1725535510660,4.52895,2392.8,2392.6,1.1197]
[1725535511569,4.111,2392.8,2392.6,1.1197]
[1725535511966,4.111,2392.8,2392.7,0.41795]
[1725535512669,0.3654,2393.1,2392.6,1.1197]
[1725535512670,0.41789,2393.1,2392.6,1.1197]
[1725535512965,0.41791,2393.0,2392.7,0.41795]
[1725535516557,0.41792,2392.9,2392.6,1.53766]
[1725535520071,0.41794,2392.8,2392.6,1.53766]
[1725535520269,0.41795,2392.7,2392.6,1.1197]
[1725535523376,1.46284,2392.7,2392.6,0.3646]
[1725535523968,0.41794,2392.8,2392.6,0.3646]
[1725535524169,0.41794,2392.8,2392.7,0.7417]
[1725535524578,3.285,2392.9,2392.7,1.15965]
[1725535524579,3.30793,2392.9,2392.7,1.15965]
[1725535524779,0.3854,2393.0,2392.7,0.7417]
[1725535525076,0.41794,2392.9,2392.7,0.7417]
[1725535525283,0.41795,2392.7,2392.6,0.3646]
[1725535526470,0.3818,2392.8,2392.1,44.01406566]
[1725535526776,0.41799,2392.5,2392.3,0.41802]
[1725535527275,0.41801,2392.4,2392.2,1.53053]
[1725535527669,0.41801,2392.4,2392.1,4.41406566]
[1725535527670,0.41804,2392.2,2392.1,0.00626566]
[1725535527870,1.61804,2392.2,2392.1,0.00626566]
[1725535528079,4.35315,2392.2,2392.1,0.00626566]
[1725535528281,8.53315,2392.2,2392.1,0.00626566]
[1725535531777,9.57826,2392.2,2392.1,0.00626566]
[1725535532582,20.16110692,2392.2,2392.1,0.00626566]
[1725535533081,0.41815,2391.6,2391.5,0.7637]
[1725535533467,0.41814,2391.7,2391.5,0.7637]
[1725535534082,0.41815,2391.6,2391.5,0.7637]
[1725535534674,3.30815,2391.6,2391.5,0.3824]
[1725535534880,0.41816,2391.5,2391.4,0.00626566]
[1725535536081,5.64518,2391.5,2391.4,0.00626566]
[1725535537083,3.30816,2391.6,2391.4,0.00626566]
[1725535537278,3.69408566,2391.8,2391.5,0.41816]
[1725535537485,0.41816,2391.6,2391.4,0.00626566]
[1725535537683,0.41814,2391.7,2391.4,0.42443566]
[1725535538279,3.49010016,2391.8,2391.4,0.00626566]
[1725535538586,0.41815,2391.6,2391.4,0.00626566]
[1725535540087,0.41814,2391.7,2391.4,0.42444566]
[1725535540286,0.41814,2391.7,2391.5,0.41816]
[1725535540488,0.41815,2391.6,2391.4,0.00626566]
[1725535541085,3.30816,2391.5,2391.4,0.00626566]
[1725535541388,3.66886,2391.5,2391.4,0.00626566]
[1725535542782,0.77886,2391.5,2391.4,0.00626566]
[1725535542978,0.41823,2391.1,2391.0,3.2078]
[1725535543186,0.41823,2391.1,2390.7,0.41829]
[1725535543187,0.41826,2391.0,2390.8,0.7678]
[1725535543388,0.41827,2390.9,2390.8,0.7678]
[1725535544385,2.89,2391.1,2390.8,0.7678]
[1725535544889,0.41826,2391.0,2390.8,0.7678]
[1725535545085,0.41827,2390.9,2390.8,0.7678]
[1725535545481,0.4183,2390.7,2390.6,0.00626566]
[1725535545684,4.35407,2390.7,2390.6,0.00626566]
[1725535545889,7.4915,2390.7,2390.6,0.00626566]
[1725535546090,7.8702,2390.7,2390.6,0.00626566]
[1725535547280,8.91597,2390.7,2390.6,0.00626566]
[1725535547883,1.04581,2390.6,2389.9,3.2078]
[1725535548192,1.04581,2390.6,2389.8,0.41846]
[1725535548193,0.41842,2390.1,2389.8,0.41846]
[1725535548686,0.41843,2390.0,2389.7,0.77967]
[1725535548888,0.41845,2389.9,2389.6,0.42475566]
[1725535549598,0.41846,2389.8,2389.6,0.00626566]
[1725535549894,0.41848,2389.7,2389.6,0.00626566]
[1725535550583,2.89,2389.8,2389.6,0.00626566]
[1725535550784,3.30846,2389.8,2389.6,0.00626566]
[1725535550990,3.30848,2389.8,2389.6,0.00626566]
[1725535551288,3.30844,2390.0,2389.7,0.41847]
[1725535551481,3.30844,2390.0,2389.7,0.79677]
[1725535551685,3.30844,2390.0,2389.7,0.3783]
[1725535551895,0.41845,2389.9,2389.7,0.3783]
[1725535552489,2.89,2389.8,2389.7,0.3783]
[1725535552686,2.89,2389.8,2389.6,0.00626566]
[1725535553090,3.30847,2389.8,2389.6,0.00626566]
[1725535553487,2.89,2389.8,2389.6,0.42476566]
[1725535553892,2.89,2389.8,2389.7,0.41848]
[1725535554496,2.89,2389.8,2389.6,0.42474566]
[1725535554700,2.89,2389.8,2389.7,0.41848]
[1725535555199,2.89,2390.0,2389.8,0.41845]
[1725535555492,2.89,2390.0,2389.9,0.41844]
[1725535557297,2.89,2390.0,2389.8,0.41845]
[1725535557495,3.30844,2390.0,2389.8,0.41846]
[1725535558093,2.89,2390.0,2389.8,0.41846]
[1725535558299,2.89,2390.0,2389.9,1.17864]
[1725535558499,0.42467566,2390.1,2390.0,0.41843]
[1725535558698,0.42467566,2390.1,2390.0,0.77663]
[1725535558699,0.00626566,2390.1,2390.0,0.77663]
[1725535558995,0.00626566,2390.1,2390.0,4.96063]
[1725535559389,0.00626566,2390.1,2390.0,0.77663]
[1725535559595,0.00626566,2390.1,2390.0,4.96063]
[1725535560301,0.00626566,2390.1,2390.0,6.0067]
[1725535560600,0.00626566,2390.1,2390.0,4.96063]
[1725535560898,0.00626566,2390.1,2390.0,10.96063]
[1725535561602,0.00626566,2390.1,2390.0,4.96063]
[1725535562309,0.42467566,2390.1,2390.0,4.96063]
[1725535562608,0.00626566,2390.1,2390.0,4.96063]
[1725535563605,0.00626566,2390.1,2390.0,0.77663]
[1725535564008,2.89626566,2390.1,2390.0,0.3582]
[1725535564299,2.89626566,2390.1,2390.0,0.41843]
[1725535564300,3.31468566,2390.1,2390.0,0.41843]
[1725535564506,0.00626566,2390.1,2390.0,0.41843]
[1725535565504,0.42467566,2390.1,2389.9,3.62623]
[1725535566600,0.00626566,2390.1,2389.9,3.62623]
[1725535566792,3.31468566,2390.1,2389.9,3.62623]
[1725535567199,0.41843,2390.0,2389.9,3.2078]
[1725535567708,2.89626566,2390.1,2389.9,0.41844]
[1725535567898,0.41845,2389.9,2389.7,1.52977]
[1725535568104,3.30845,2389.9,2389.7,1.52977]
[1725535570606,3.30845,2389.9,2389.8,0.41846]
[1725535571002,3.30845,2389.9,2389.7,1.52977]
[1725535571198,0.41846,2389.8,2389.7,1.52977]
[1725535571808,3.30845,2389.9,2389.7,1.52977]
[1725535572005,3.30845,2389.9,2389.8,0.41846]
[1725535572598,0.41846,2389.8,2389.7,1.52977]
[1725535574105,0.41846,2389.8,2389.7,0.7271]
[1725535575009,0.41848,2389.7,2389.6,0.00626566]
[1725535575310,3.30848,2389.7,2389.6,0.00626566]
[1725535576613,2.89,2389.9,2389.6,0.00626566]
[1725535576808,3.30846,2389.9,2389.7,0.41846]
[1725535577015,3.30846,2389.9,2389.8,0.3712]
[1725535577712,3.30846,2389.9,2389.8,1.14866]
[1725535578108,3.30846,2389.9,2389.6,0.00626566]
[1725535578109,2.89,2389.9,2389.6,0.00626566]
[1725535578418,3.30845,2389.9,2389.8,0.41846]
[1725535578617,2.89,2389.9,2389.8,0.41846]
[1725535580401,3.30844,2389.9,2389.8,0.41846]
[1725535581111,3.30844,2389.9,2389.7,0.41847]
[1725535581112,0.41847,2389.8,2389.7,0.41847]
[1725535581312,3.30845,2389.9,2389.7,0.41847]
[1725535581915,3.30845,2389.9,2389.8,0.79116]
[1725535582109,3.31467566,2390.1,2389.9,0.41843]
[1725535582310,0.41843,2390.0,2389.9,1.17353]
[1725535582809,2.89626566,2390.1,2390.0,0.41843]
[1725535583012,3.31467566,2390.1,2390.0,0.41843]
[1725535583605,2.89626566,2390.1,2390.0,0.41843]
[1725535584002,2.89626566,2390.1,2389.9,0.7551]
[1725535584305,0.41843,2390.0,2389.8,0.79115]
[1725535584511,3.30844,2389.9,2389.8,0.3727]
[1725535584905,0.41846,2389.8,2389.7,0.3855]
[1725535585113,0.41846,2389.8,2389.6,0.00626566]
[1725535585409,2.89,2389.7,2389.6,0.42476566]
[1725535586916,3.30848,2389.7,2389.6,0.42476566]
[1725535587114,2.89,2389.7,2389.6,0.42476566]
[1725535587512,3.30848,2389.7,2389.6,0.42476566]
[1725535587906,2.89,2389.7,2389.6,0.42476566]
[1725535590209,3.30848,2389.7,2389.6,0.42476566]
[1725535590405,8.53948,2389.7,2389.6,0.00626566]
[1725535590610,18.02876651,2389.7,2388.9,0.41861]
[1725535590810,3.3086,2389.0,2388.9,0.3832]
[1725535591013,2.89,2389.2,2388.9,0.3832]
[1725535591206,2.89,2389.2,2389.1,0.41858]
[1725535591414,7.41953,2389.4,2389.2,0.41856]
[1725535592118,7.41953,2389.4,2389.2,0.81286]
[1725535593819,7.41953,2389.4,2389.2,0.3943]
[1725535594018,0.41855,2389.3,2389.2,0.3943]
[1725535594514,0.41857,2389.2,2389.1,0.00426543]
[1725535594825,3.30857,2389.2,2389.1,0.00426543]
[1725535595007,2.89,2389.2,2389.1,0.00426543]
[1725535595211,2.89,2389.2,2389.1,0.42284543]
[1725535595617,2.89,2389.2,2389.1,0.00426543]
[1725535596115,2.89,2389.2,2389.1,0.42284543]
[1725535598512,3.30854,2389.4,2389.1,0.00426543]
[1725535598719,2.89,2389.4,2389.3,0.41855]
[1725535599019,3.30853,2389.4,2389.3,0.41855]
[1725535599318,3.30853,2389.4,2389.3,0.80255]
[1725535600417,7.001,2389.7,2389.3,0.80255]
[1725535600622,3.30849,2389.7,2389.5,0.4185]
[1725535601407,2.89,2389.7,2389.6,0.4185]
[1725535601911,3.30849,2389.7,2389.5,0.4185]
[1725535602518,3.30849,2389.7,2389.6,0.4185]
[1725535602824,2.89,2389.7,2389.6,0.4185]
[1725535603119,3.30848,2389.7,2389.5,0.4185]
[1725535604534,0.41851,2389.6,2389.4,0.41852]
[1725535604721,0.79021,2389.6,2389.4,0.41852]
[1725535605115,0.79021,2389.6,2389.5,0.41851]
[1725535605116,0.3717,2389.6,2389.5,0.41851]
[1725535605320,3.30849,2389.7,2389.5,0.41851]
[1725535605614,0.4185,2389.6,2389.5,0.41851]
[1725535606218,0.4185,2389.6,2389.4,0.41852]
[1725535606419,3.30849,2389.7,2389.5,0.41851]
[1725535606724,0.4185,2389.6,2389.5,0.41851]
[1725535607427,0.4185,2389.6,2389.4,0.41852]
[1725535607729,0.4185,2389.6,2389.5,0.41851]
[1725535608425,3.30849,2389.7,2389.5,0.41851]
[1725535608626,3.30848,2389.7,2389.6,0.4185]
[1725535609519,2.89,2389.7,2389.6,0.4185]
[1725535609927,1.17005,2389.9,2389.8,0.41846]
[1725535609928,2.89,2389.9,2389.8,0.41846]